Cogmind - Beta 10.2 @@@ ROGUE MODE // 2021.05.16 @ 21:28:41 Player: thingamajigger Result: Destroyed by Enhanced Grunt with Neutron Cannon Performance ------------- Evolutions (3) 1500 Regions Visited (16) 3200 Robots Destroyed (247) 1235 Value Destroyed (10374) 10374 Prototype IDs (26) 520 Alien Tech Used (0) 0 Bonus (3820) 3820 TOTAL SCORE: 20649 Bonus ------- High Alert Combat Kills 1229 Follower Combat Kills 197 Entered Garrisons 600 Used RIF Installer 1500 Met Data Miner 300 Friendly Fire -6 Cogmind --------- Core Integrity 0/700 Matter 241/300 Energy 155/275 System Corruption 8% Temperature Cool (42) Movement Treading (240) Ox4 Location -7/Data Miner Parts ------- > --- POWER (1) -------- Deuterium Engine > --- PROPULSION (4) --- Improved Medium Treads > --- UTILITY (5) ------ High-capacity Storage Unit High-capacity Storage Unit High-capacity Storage Unit High-capacity Storage Unit > --- WEAPON (3) ------- Proton Missile Launcher > --- INVENTORY (36) --- Deuterium Engine Micro Nuclear Core High-capacity Storage Unit High-capacity Storage Unit High-capacity Matter Pod (200) Improved Targeting Computer Weapon Cycler Weapon Cycler Weapon Cycler Improved Weapon Shielding Reactive Plating Hacking Suite Relay Coupler [Sentry] (20) Relay Coupler [Sentry] (18) Relay Coupler [Sentry] (24) Relay Coupler [Sentry] (24) Relay Coupler [Specialist] (18) Relay Coupler [Hunter] (18) Relay Coupler [Hunter] (15) Relay Coupler [Hunter] (18) Relay Coupler [Hunter] (17) Relay Coupler [Hunter] (18) Autogun Autogun Gauss Rifle Gauss Rifle Gauss Rifle Gauss Rifle Gauss Rifle Gauss Rifle Shock Bomb Launcher Shock Bomb Launcher Missile Launcher Remote Datajack Remote Datajack Peak State ------------ > --- POWER ------------ Improved Deuterium Engine > --- PROPULSION ------- Light Treads Armored Treads Medium Treads Medium Treads > --- UTILITY ---------- High-capacity Storage Unit High-capacity Storage Unit High-capacity Storage Unit High-capacity Storage Unit Hardened Medium Armor Plating > --- WEAPON ----------- Gauss Rifle Flak Gun Flak Gun > --- INVENTORY -------- Deuterium Engine Deuterium Engine Micro Nuclear Core Light Treads High-capacity Storage Unit High-capacity Storage Unit High-capacity Matter Pod Weapon Cycler Weapon Cycler Weapon Cycler Improved Weapon Shielding Reactive Plating Medium Reactive Plating Hacking Suite Relay Coupler [Sentry] Relay Coupler [Sentry] Relay Coupler [Sentry] Relay Coupler [Sentry] Relay Coupler [Specialist] Relay Coupler [Hunter] Relay Coupler [Hunter] Relay Coupler [Hunter] Relay Coupler [Hunter] Relay Coupler [Hunter] Gauss Rifle Gauss Rifle Gauss Rifle Gauss Rifle Gauss Rifle Gauss Rifle Gauss Rifle Shock Bomb Launcher Shock Bomb Launcher Proton Missile Launcher Remote Datajack Remote Datajack [Rating: 48] Favorites ----------- Power Light Ion Engine Engine Light Ion Engine Power Core Nuclear Core Propulsion Light Treads Treads Light Treads Leg Aluminum Leg Wheel Armored Wheel Utility High-capacity Storage Unit Storage High-capacity Storage Unit Processor Improved Targeting Computer Hackware Relay Coupler [Brawler] Protection Hardened Medium Armor Plating Weapon Gauss Rifle Energy Gun Force Rifle Ballistic Gun Gauss Rifle Ballistic Cannon Advanced Assault Cannon Launcher Shock Bomb Launcher Impact Weapon Power Maul Slashing Weapon Mining Claw Special Melee Weapon Improved Datajack Build | -11 -10 -10 -9 -9 -9 -8 -8 -8 -8 -8 -7 -7 -7 -7 -7 -7 ------- Run | Scr Mat Min Mat Min Exi Min Mat Gar Mat Gar Fac Gar Fac Low Low Dat Slots Evolved 6 | . . . 2 . . . 2 . . . 2 . . . . . Power . | . . . . . . . . . . . . . . . . . Propulsion 2 | . . . . . . . 1 . . . 1 . . . . . Utility 3 | . . . 2 . . . . . . . 1 . . . . . Weapon 1 | . . . . . . . 1 . . . . . . . . . Parts Attached 172 | 7 3 5 14 1 2 . 21 20 5 3 6 32 39 11 2 1 Power 14 | 1 . 1 . . . . 2 2 . 1 . 2 3 2 . . Engine 12 | 1 . 1 . . . . 2 2 . 1 . 2 1 2 . . Core 2 | . . . . . . . . . . . . . 2 . . . Reactor . | . . . . . . . . . . . . . . . . . Propulsion 42 | 2 . . 4 . . . 7 4 1 1 1 14 7 1 . . Treads 29 | 2 . . 2 . . . 6 4 1 1 1 4 7 1 . . Leg 10 | . . . . . . . . . . . . 10 . . . . Wheel 3 | . . . 2 . . . 1 . . . . . . . . . Hover . | . . . . . . . . . . . . . . . . . Flight . | . . . . . . . . . . . . . . . . . Utility 42 | 2 3 . 3 1 2 . 3 3 2 . 2 2 13 6 . . Device . | . . . . . . . . . . . . . . . . . Storage 18 | 2 3 . 1 . 1 . . 2 . . . . 4 5 . . Processor 1 | . . . . . . . . . . . 1 . . . . . Hackware 5 | . . . . . . . . 1 . . . . 4 . . . Protection 18 | . . . 2 1 1 . 3 . 2 . 1 2 5 1 . . Artifact . | . . . . . . . . . . . . . . . . . Weapon 74 | 2 . 4 7 . . . 9 11 2 1 3 14 16 2 2 1 Energy Gun 6 | 1 . 2 . . . . 1 1 . . 1 . . . . . Energy Cannon . | . . . . . . . . . . . . . . . . . Ballistic Gun 43 | 1 . 2 5 . . . 4 5 2 1 1 10 11 . 1 . Ballistic Cannon 5 | . . . . . . . 2 1 . . 1 1 . . . . Launcher 11 | . . . 1 . . . . 2 . . . 3 1 2 1 1 Special Weapon . | . . . . . . . . . . . . . . . . . Impact Weapon 2 | . . . . . . . . . . . . . 2 . . . Slashing Weapon 4 | . . . 1 . . . 2 1 . . . . . . . . Piercing Weapon . | . . . . . . . . . . . . . . . . . Special Melee Weapon 3 | . . . . . . . . 1 . . . . 2 . . . Unidentified Prototypes 2 | . . . 1 . . . . . . . . . 1 . . . Parts Lost 67 | . . 5 6 . . . 9 6 3 2 1 19 7 4 . 5 Power 9 | . . 1 . . . . 2 1 . . . 2 2 1 . . Propulsion 25 | . . . 3 . . . 1 2 1 1 1 9 3 3 . 1 Utility 9 | . . . 1 . . . 3 . 1 . . 2 1 . . 1 Weapon 24 | . . 4 2 . . . 3 3 1 1 . 6 1 . . 3 Highest Loss Streak 7 | . . 3 4 . . . 3 2 2 2 1 7 3 3 . 5 Average Slot Usage (%) 94 | . 100 99 98 100 89 88 88 95 97 99 89 93 98 85 84 81 Engine 7 | . 14 14 11 11 11 11 9 8 9 9 7 6 3 5 7 7 Treads 21 | . 28 28 13 . . . 23 26 26 26 21 10 29 19 15 14 Leg 1 | . . . . . . . . . . . . 15 . . . . Wheel 1 | . . . 8 22 22 22 2 . . . . . . . . . Storage 25 | . 28 28 32 33 25 22 18 25 27 27 23 23 24 29 30 30 Processor 2 | . . . . . . . . . . . 6 7 2 . . . Protection 7 | . . . 10 11 8 11 8 6 7 9 7 7 9 5 7 6 Energy Gun 2 | . 14 9 . . . . . 2 . . 6 1 . . . . Ballistic Gun 17 | . 14 18 19 22 22 22 24 13 17 17 8 16 21 20 15 14 Ballistic Cannon 2 | . . . . . . . 1 5 9 9 6 2 . . . . Naked Turns . | . . . . . . . . . . . . . . . . . Heaviest Build 171 | 14 70 70 108 108 124 124 139 139 125 126 127 136 170 171 171 171 Greatest Support 99 | 40 40 40 40 28 28 28 60 62 62 62 62 80 99 88 50 50 Greatest Overweight (x) 41 | . 1 1 8 3 4 4 6 2 2 2 3 41 1 3 3 3 Average Overweight (x) 1 | . . 1 2 3 3 4 2 1 1 1 2 2 1 2 3 3 Largest Inventory Capacity 40 | 8 20 20 28 28 40 32 32 32 28 28 28 28 36 36 36 36 Average Capacity 28 | 5 16 20 27 28 30 32 32 28 28 28 28 28 30 35 36 36 Most Carried 36 | 2 13 14 27 28 32 30 32 31 28 28 28 28 36 36 36 36 Average Carried 26 | 1 5 12 18 27 28 30 31 25 27 26 27 25 28 32 36 35 Final Capacity 36 | 8 20 20 28 28 32 32 32 28 28 28 28 28 36 36 36 36 Final Carried 36 | 2 13 11 27 27 30 30 31 28 25 28 28 22 35 36 36 35 Class Distribution -------------------- 30% | Hauler-Mutant 19% | Bothacker-Tank 15% | Hauler-Gunner 14% | Hauler-Tank 8% | Scavenger-Gunner 3% | Bothacker-Mutant 3% | Mutant 3% | Bothacker-Gunner Dominant Class ---------------- Mutant | -10/Materials Hauler-Mutant | -10/Mines Hauler-Mutant | -9/Materials Hauler-Mutant | -9/Mines Hauler-Mutant | -9/Exiles Hauler-Mutant | -8/Mines Hauler-Tank | -8/Materials Hauler-Mutant | -8/Garrison Hauler-Tank | -8/Materials Hauler-Mutant | -8/Garrison Hauler-Gunner | -7/Factory Scavenger-Gunner | -7/Garrison Bothacker-Tank | -7/Factory Bothacker-Tank | -7/Lower Caves Bothacker-Tank | -7/Lower Caves Bothacker-Tank | -7/Data Miner Resources | -11 -10 -10 -9 -9 -9 -8 -8 -8 -8 -8 -7 -7 -7 -7 -7 -7 ----------- Run | Scr Mat Min Mat Min Exi Min Mat Gar Mat Gar Fac Gar Fac Low Low Dat Matter Collected 7212 | 275 212 61 303 106 20 . 858 739 374 441 534 884 1948 355 102 . Remotely . | . . . . . . . . . . . . . . . . . Salvage Created 9105 | 85 389 177 663 327 . . 1395 608 584 441 474 1112 2452 336 62 . Parts 554 | 1 28 9 48 21 . . 89 37 43 25 37 62 129 19 6 . Haulers Intercepted 6 | . 2 . 2 . . . . . . . . . 2 . . . Recyclers Shooed 5 | . . . . . . . 1 . . . . . 4 . . . Parts Field Recycled . | . . . . . . . . . . . . . . . . . Retrieved Matter . | . . . . . . . . . . . . . . . . . Parts Self-Destructed 18 | . . . . . . . . . . . . . . 15 3 . Prevented 2 | . . . . . . . . . . . . . . 2 . . Kills | -11 -10 -10 -9 -9 -9 -8 -8 -8 -8 -8 -7 -7 -7 -7 -7 -7 ------- Run | Scr Mat Min Mat Min Exi Min Mat Gar Mat Gar Fac Gar Fac Low Low Dat Combat Hostiles Destroyed 206 | . 9 7 14 9 . . 33 22 13 15 6 29 41 7 1 . Guns 157 | . 9 5 12 9 . . 31 10 8 10 4 16 37 5 1 . Cannons 17 | . . . . . . . 2 1 5 5 2 2 . . . . AOE 32 | . . 2 2 . . . . 11 . . . 11 4 2 . . Classes Destroyed 14 | 1 4 . 5 1 . . 1 . . . 1 . . 1 . . Worker 6 | . . . 2 . . . . . . . . . 4 . . . Builder 6 | . . . 2 . . . 2 . . . . . 2 . . . Tunneler 1 | . . . 1 . . . . . . . . . . . . . Hauler 6 | . 2 . 2 . . . . . . . . . 2 . . . Recycler 5 | 1 . . 1 . . . . . . . . . 3 . . . Watcher 17 | . 3 . 1 . . . 2 . 1 . 5 . 5 . . . Swarmer 62 | . 6 5 6 3 . . 10 7 2 8 . 6 6 3 . . Grunt 89 | . 3 2 3 5 . . 13 12 4 5 . 20 20 2 . . Brawler 4 | . . . 1 . . . . 3 . . . . . . . . Duelist 2 | . . . . 1 . . . . . . . . . 1 . . Sentry 30 | . . . 4 . . . 9 . 6 1 1 3 6 . . . Hunter 5 | . . . . . . . 1 . 1 1 . . 2 . . . Programmer 13 | . . . . . . . . . . . 5 . 7 . 1 . Behemoth 1 | . . . . . . . . . . . . . . 1 . . Decomposer 1 | . . . . . . . . . . . . . . . 1 . Best Kill Streak 13 | 1 4 2 8 3 . . 11 6 3 4 2 13 6 3 1 . Combat Bots Only 13 | . 3 2 3 3 . . 11 6 3 4 1 13 5 3 1 . Max Kills in Single Turn 5 | 1 1 2 2 2 . . 2 5 1 2 1 3 4 2 1 . Gunslinging 1 | . . . 1 1 . . 1 . . . . . 1 1 . . Exploded 5 | . . 2 1 . . . . 5 . . . 3 2 1 . . Melee . | . . . . . . . . . . . . . . . . . Uniques/NPCs Destroyed . | . . . . . . . . . . . . . . . . . Combat | -11 -10 -10 -9 -9 -9 -8 -8 -8 -8 -8 -7 -7 -7 -7 -7 -7 -------- Run | Scr Mat Min Mat Min Exi Min Mat Gar Mat Gar Fac Gar Fac Low Low Dat Damage Taken 12297 | . 258 360 1016 187 . 59 1753 980 645 726 200 2041 2823 637 . 612 Core 1420 | . 36 64 123 10 . 35 219 99 76 52 . 278 218 69 . 141 Absorbed by Shields . | . . . . . . . . . . . . . . . . . Core Remaining (%) 59 | 100 . 60 . . . 58 . . . 18 . . . . . . Volleys Fired 538 | 5 32 22 43 13 . . 92 52 31 34 29 65 101 14 1 4 Largest 3 | 2 2 2 2 2 . . 3 3 3 3 3 3 3 3 3 3 Hottest 156 | 70 70 70 46 46 . . 130 130 92 95 156 156 84 84 84 92 Shots Fired 1350 | 10 64 43 78 26 . . 265 108 92 90 63 161 301 35 5 9 Gun 1163 | 10 64 43 72 26 . . 247 67 61 57 37 139 299 32 4 5 Cannon 147 | . . . . . . . 18 26 31 33 26 13 . . . . Launcher 40 | . . . 6 . . . . 15 . . . 9 2 3 1 4 Special . | . . . . . . . . . . . . . . . . . Kinetic 1218 | 5 32 29 72 26 . . 263 82 92 90 46 141 299 32 4 5 Thermal 82 | 5 32 4 . . . . 2 11 . . 17 11 . . . . Explosive 30 | . . . 6 . . . . 15 . . . 9 . . . . Electromagnetic 20 | . . 10 . . . . . . . . . . 2 3 1 4 Robot Hit Streak 29 | 5 15 13 18 22 . . 29 10 28 7 8 19 28 12 2 3 Robot Miss Streak 8 | 1 4 7 5 3 . . 4 3 3 3 2 7 8 2 3 1 Penetration Max 1 | . . . . . . . . . . 1 . . 1 . . . Secondary Targets 29 | . 2 . 4 3 . . 10 . . . . 1 7 2 . . Max Gunslinging Chain 1 | . 1 . 1 1 . . 1 . . . . 1 1 1 . . Shots Hit Robots 922 | 9 44 24 54 22 . . 181 59 62 50 27 109 245 28 2 6 Core Hits 526 | 2 20 10 34 12 . . 70 40 25 22 15 72 183 15 3 3 Critical Hits 10 | . . . 1 . . . 1 . 1 . 3 1 1 2 . . Critical Kills 3 | . . . . . . . . . . . 2 1 . . . . Critical Parts Destroyed 7 | . . . 1 . . . 1 . 1 . 1 . 1 2 . . Melee Attacks 24 | . . . 8 . . . 5 1 . . . . 10 . . . Impact 3 | . . . . . . . . . . . . . 3 . . . Slashing 14 | . . . 8 . . . 5 1 . . . . . . . . Piercing . | . . . . . . . . . . . . . . . . . Sneak Attacks 6 | . . . . . . . . . . . . . 6 . . . Combat Hostiles . | . . . . . . . . . . . . . . . . . Follow-up Attacks . | . . . . . . . . . . . . . . . . . Damage Inflicted 19015 | 99 467 368 1188 374 . . 2678 1679 1135 899 690 3045 5487 669 68 169 Guns 14078 | 99 467 257 691 374 . . 2424 632 717 650 566 1679 4794 608 55 65 Cannons 1240 | . . . . . . . 178 128 418 249 124 143 . . . . Explosions 3653 | . . 111 474 . . . 55 919 . . . 1223 693 61 13 104 Melee . | . . . . . . . . . . . . . . . . . Ramming 44 | . . . 23 . . . 21 . . . . . . . . . Kinetic 14039 | 38 117 119 691 374 . . 2568 609 1135 899 315 1652 4794 608 55 65 Thermal 1770 | 61 350 160 . . . . 34 151 . . 375 170 469 . . . Explosive 2616 | . . . 474 . . . . 919 . . . 1223 . . . . Electromagnetic 546 | . . 89 . . . . 55 . . . . . 224 61 13 104 Impact . | . . . . . . . . . . . . . . . . . Slashing . | . . . . . . . . . . . . . . . . . Piercing . | . . . . . . . . . . . . . . . . . Highest Corruption 8 | . . . . . . . . . . . 2 2 8 8 8 8 Average Corruption 4 | . . . . . . . . . . . 1 2 4 8 8 8 Corruption Purged . | . . . . . . . . . . . . . . . . . Effects 173 | . . . . . . . . . . . 15 17 78 39 18 6 Message Errors 36 | . . . . . . . . . . . 3 6 15 10 2 . Matter Fused 33 | . . . . . . . . . . . . . 13 11 7 2 Heat Flow Errors 25 | . . . . . . . . . . . 6 1 9 5 3 1 Energy Discharges 20 | . . . . . . . . . . . 3 4 8 4 1 . Parts Rejected 1 | . . . . . . . . . . . . . 1 . . . Data Loss (minor) 17 | . . . . . . . . . . . 3 . 9 4 1 . Data Loss (major) 4 | . . . . . . . . . . . . . 2 1 1 . Misfires 8 | . . . . . . . . . . . . . 4 1 2 1 Targeting Errors 26 | . . . . . . . . . . . . 6 15 2 1 2 Weapon Failures 3 | . . . . . . . . . . . . . 2 1 . . Overload Shots . | . . . . . . . . . . . . . . . . . Overflow Damage 144 | . . . 23 . . . . 15 . . . 41 65 . . . Projectiles . | . . . . . . . . . . . . . . . . . Explosions 144 | . . . 23 . . . . 15 . . . 41 65 . . . Melee . | . . . . . . . . . . . . . . . . . Knockbacks 9 | . . . . . . . 5 1 . 3 . . . . . . Impact 1 | . . . . . . . 1 . . . . . . . . . Kinetic 7 | . . . . . . . 3 1 . 3 . . . . . . Secondary 1 | . . . . . . . 1 . . . . . . . . . Self-Inflicted Damage 511 | . . . 108 . . . 24 169 . 32 . 105 71 . . 2 Shots 17 | . . . 3 . . . 2 6 . 1 . 3 1 . . 1 Rammed 2 | . . . 1 . . . 1 . . . . . . . . . Targets Rammed 2 | . . . 1 . . . 1 . . . . . . . . . Kicked . | . . . . . . . . . . . . . . . . . Crushed . | . . . . . . . . . . . . . . . . . Highest Temperature 576 | 90 124 174 18 4 . 4 265 576 353 340 296 325 271 237 199 210 Average Temperature 81 | 44 43 84 7 1 . 4 50 146 114 116 89 91 58 82 80 74 Received Heat Transfer 3582 | . 42 114 183 39 . . 648 360 216 126 6 816 873 81 . 78 Effects 22 | . . . . . . . 2 10 . . 1 8 1 . . . Shutdowns 1 | . . . . . . . . 1 . . . . . . . . Energy Bleed 7 | . . . . . . . 1 2 . . 1 2 1 . . . Interference 7 | . . . . . . . 1 . . . . 6 . . . . Matter Decay 1 | . . . . . . . . 1 . . . . . . . . Short Circuit 1 | . . . . . . . . 1 . . . . . . . . Damage (minor) 2 | . . . . . . . . 2 . . . . . . . . Damage (major) 3 | . . . . . . . . 3 . . . . . . . . Siege Activations . | . . . . . . . . . . . . . . . . . Robots Corrupted . | . . . . . . . . . . . . . . . . . Combat Hostiles . | . . . . . . . . . . . . . . . . . Parts Fried . | . . . . . . . . . . . . . . . . . Impact Corruptions . | . . . . . . . . . . . . . . . . . Robots Melted . | . . . . . . . . . . . . . . . . . Combat Hostiles . | . . . . . . . . . . . . . . . . . Parts Melted 6 | . 4 1 . . . . . . . . . . 1 . . . Heat Transferred 2953 | 185 1036 198 . . . . 74 333 . . 518 259 350 . . . Parts Sabotaged . | . . . . . . . . . . . . . . . . . Parts Stolen . | . . . . . . . . . . . . . . . . . Parts Stripped . | . . . . . . . . . . . . . . . . . Power Chain Reactions 2 | . . 1 . . . . . . . . . . 1 . . . Missiles Intercepted . | . . . . . . . . . . . . . . . . . Alert | -11 -10 -10 -9 -9 -9 -8 -8 -8 -8 -8 -7 -7 -7 -7 -7 -7 ------- Run | Scr Mat Min Mat Min Exi Min Mat Gar Mat Gar Fac Gar Fac Low Low Dat Peak Influence 1022 | 5 215 110 398 306 . 15 618 817 816 1022 606 856 717 . . . Initial 536 | . 3 30 22 96 . . 5 210 397 446 536 205 449 . . . Average 373 | 1 79 45 223 221 . 14 383 453 586 765 379 601 335 . . . Maximum Alert Level 3 | . 1 . 1 1 . . 2 3 3 3 2 3 3 . . . Low Security (%) 25 | 100 87 100 28 53 . 100 5 . . . . . 42 . . . Level 1 32 | . 12 . 71 46 . . 49 48 9 . 64 27 11 . . . Level 2 31 | . . . . . . . 44 35 70 38 35 27 45 . . . Level 3 10 | . . . . . . . . 15 20 61 . 44 . . . . Level 4 . | . . . . . . . . . . . . . . . . . Level 5 . | . . . . . . . . . . . . . . . . . High Security . | . . . . . . . . . . . . . . . . . Max Security . | . . . . . . . . . . . . . . . . . Squads Dispatched 28 | . . . 2 . . . 4 . 5 . 5 . 12 . . . Investigation 4 | . . . . . . . . . 2 . . . 2 . . . Extermination 7 | . . . . . . . . . . . 4 . 3 . . . Reinforcement 9 | . . . 2 . . . 3 . . . 1 . 3 . . . Assault 1 | . . . . . . . . . . . . . 1 . . . Garrison 7 | . . . . . . . 1 . 3 . . . 3 . . . Intercept . | . . . . . . . . . . . . . . . . . Construction Impeded . | . . . . . . . . . . . . . . . . . Haulers Reinforced 2 | . . . . . . . . . . . . . 2 . . . Stealth | -11 -10 -10 -9 -9 -9 -8 -8 -8 -8 -8 -7 -7 -7 -7 -7 -7 --------- Run | Scr Mat Min Mat Min Exi Min Mat Gar Mat Gar Fac Gar Fac Low Low Dat Distress Signals 14 | . . . 1 . . . 8 . . . . . 5 . . . Communications Jammed . | . . . . . . . . . . . . . . . . . Distress Signals . | . . . . . . . . . . . . . . . . . Times Spotted 290 | . 11 7 29 7 . 1 56 24 16 14 14 31 68 8 . 4 Peak Tracking Total 8 | . 3 3 5 3 . 1 8 6 3 4 3 8 5 3 . 4 Tactical Retreats 15 | . . 1 1 . . . 4 1 . 1 . 4 2 1 . . Traps | -11 -10 -10 -9 -9 -9 -8 -8 -8 -8 -8 -7 -7 -7 -7 -7 -7 ------- Run | Scr Mat Min Mat Min Exi Min Mat Gar Mat Gar Fac Gar Fac Low Low Dat Traps Triggered 23 | . . . . . . . . 5 1 5 1 5 6 . . . Indirectly . | . . . . . . . . . . . . . . . . . Trap Hack Attempts . | . . . . . . . . . . . . . . . . . Triggered . | . . . . . . . . . . . . . . . . . Disarmed . | . . . . . . . . . . . . . . . . . Reprogrammed . | . . . . . . . . . . . . . . . . . Reused . | . . . . . . . . . . . . . . . . . Traps Extracted . | . . . . . . . . . . . . . . . . . Installed . | . . . . . . . . . . . . . . . . . Triggered . | . . . . . . . . . . . . . . . . . Exploded 3 | . . . . . . . . 2 . . 1 . . . . . Machines | -11 -10 -10 -9 -9 -9 -8 -8 -8 -8 -8 -7 -7 -7 -7 -7 -7 ---------- Run | Scr Mat Min Mat Min Exi Min Mat Gar Mat Gar Fac Gar Fac Low Low Dat Machines Disabled 25 | . . . 1 . . . 5 3 . 5 2 3 5 . . 1 Max in Single Turn 5 | . . . 1 . . . 2 1 . 2 1 1 5 . . 1 Garrison Access 2 | . . . . . . . . . . . . . 2 . . . Garrison Relay 9 | . . . . . . . . 3 . 3 . 3 . . . . Phase Generator 1 | . . . . . . . . . . 1 . . . . . . Machines Sabotaged . | . . . . . . . . . . . . . . . . . Garrisons Compromised . | . . . . . . . . . . . . . . . . . Overloaded Fab Kills . | . . . . . . . . . . . . . . . . . Fab Network Shutdowns . | . . . . . . . . . . . . . . . . . Hacking | -11 -10 -10 -9 -9 -9 -8 -8 -8 -8 -8 -7 -7 -7 -7 -7 -7 --------- Run | Scr Mat Min Mat Min Exi Min Mat Gar Mat Gar Fac Gar Fac Low Low Dat Machines Accessed 50 | . 4 . 8 . 1 . 8 . 6 . 9 . 11 . . 3 Terminals 30 | . 4 . 7 . . . 7 . 4 . 4 . 4 . . . Fabricators 3 | . . . . . . . . . . . . . 3 . . . Repair Stations 1 | . . . . . . . . . . . . . 1 . . . Recycling Units 2 | . . . . . . . . . . . 2 . . . . . Scanalyzers 4 | . . . 1 . . . . . 1 . 2 . . . . . Garrison Access 6 | . . . . . . . 1 . 1 . 1 . 3 . . . Total Hacks 170 | . 11 . 34 . 1 . 29 . 22 . 26 . 22 . . 25 Successful 118 | . 8 . 26 . 1 . 17 . 12 . 17 . 12 . . 25 Failed 50 | . 2 . 8 . . . 11 . 10 . 9 . 10 . . . Catastrophic 6 | . . . . . . . 3 . 1 . 2 . . . . . Database Lockouts 2 | . 1 . . . . . 1 . . . . . . . . . Manual 54 | . 6 . 9 . . . 21 . 11 . 2 . 5 . . . Terminals 95 | . 11 . 22 . . . 28 . 17 . 9 . 8 . . . Fabricators 9 | . . . . . . . . . . . . . 9 . . . Repair Stations 2 | . . . . . . . . . . . . . 2 . . . Recycling Units 5 | . . . . . . . . . . . 5 . . . . . Scanalyzers 27 | . . . 12 . . . . . 4 . 11 . . . . . Garrison Access 6 | . . . . . . . 1 . 1 . 1 . 3 . . . Terminal Hacks 64 | . 6 . 12 . 1 . 9 . 5 . 4 . 2 . . 25 Record 13 | . 2 . 1 . 1 . 1 . . . 2 . . . . 6 Part Schematic 9 | . . . . . . . . . . . 1 . . . . 8 Robot Schematic 8 | . . . . . . . . . . . . . . . . 8 Robot Analysis 8 | . . . 4 . . . 1 . 3 . . . . . . . Prototype ID Bank 12 | . 2 . 4 . . . 2 . 1 . . . . . . 3 Level Access Points 1 | . . . . . . . . . . . . . 1 . . . Terminal Index 5 | . 1 . . . . . 1 . 1 . 1 . 1 . . . Alert Level 1 | . . . 1 . . . . . . . . . . . . . Unreport Threat 4 | . 1 . 1 . . . 2 . . . . . . . . . Locate Traps 1 | . . . 1 . . . . . . . . . . . . . Zone Layout 2 | . . . . . . . 2 . . . . . . . . . Fabricator Hacks 4 | . . . . . . . . . . . . . 4 . . . Load Schematic 2 | . . . . . . . . . . . . . 2 . . . Build 2 | . . . . . . . . . . . . . 2 . . . Repair Station Hacks 2 | . . . . . . . . . . . . . 2 . . . Scan Component 1 | . . . . . . . . . . . . . 1 . . . Repair 1 | . . . . . . . . . . . . . 1 . . . Recycling Unit Hacks 1 | . . . . . . . . . . . 1 . . . . . Retrieve Components 1 | . . . . . . . . . . . 1 . . . . . Scanalyzer 26 | . . . 12 . . . . . 4 . 10 . . . . . Insert Component 11 | . . . 5 . . . . . 2 . 4 . . . . . Analyze 15 | . . . 7 . . . . . 2 . 6 . . . . . Garrison Access Hacks 6 | . . . . . . . 1 . 1 . 1 . 3 . . . Unlock Access 4 | . . . . . . . 1 . 1 . 1 . 1 . . . Seal Access 2 | . . . . . . . . . . . . . 2 . . . Unauthorized Hacks 15 | . 2 . 2 . . . 7 . 2 . 1 . 1 . . . Terminals 13 | . 2 . 2 . . . 7 . 2 . . . . . . . Track 1 | . . . . . . . 1 . . . . . . . . . Assimilate 3 | . . . . . . . 3 . . . . . . . . . Botnet 6 | . 1 . 2 . . . 2 . 1 . . . . . . . Operators 3 | . 1 . . . . . 1 . 1 . . . . . . . Fabricators 1 | . . . . . . . . . . . . . 1 . . . Prioritize 1 | . . . . . . . . . . . . . 1 . . . Repair Stations . | . . . . . . . . . . . . . . . . . Recycling Units 1 | . . . . . . . . . . . 1 . . . . . Recyclers 1 | . . . . . . . . . . . 1 . . . . . Scanalyzers . | . . . . . . . . . . . . . . . . . Garrison Access . | . . . . . . . . . . . . . . . . . Data Cores Recovered 1 | . . . . . . . . . . . . . 1 . . . Used . | . . . . . . . . . . . . . . . . . Hacking Detections 39 | . 3 . 8 . . . 7 . 5 . 8 . 8 . . . Full Trace Events 3 | . . . . . . . . . 2 . . . 1 . . . Feedback Events . | . . . . . . . . . . . . . . . . . Feedback Blocked . | . . . . . . . . . . . . . . . . . Robot Schematics Acquired 8 | . . . . . . . . . . . . . . . . 8 Robots Built . | . . . . . . . . . . . . . . . . . Matter . | . . . . . . . . . . . . . . . . . Time . | . . . . . . . . . . . . . . . . . Total Robot Build Rating . | . . . . . . . . . . . . . . . . . Part Schematics Acquired 20 | . . . 5 . . . . . 2 . 5 . . . . 8 Parts Built 4 | . . . . . . . . . . . . . 4 . . . Matter 314 | . . . . . . . . . . . . . 314 . . . Time 157 | . . . . . . . . . . . . . 157 . . . Total Part Build Rating 14 | . . . . . . . . . . . . . 14 . . . Parts Repaired 1 | . . . . . . . . . . . . . 1 . . . Time 32 | . . . . . . . . . . . . . 32 . . . Parts Recycled . | . . . . . . . . . . . . . . . . . Recycled Matter . | . . . . . . . . . . . . . . . . . Retrieved Matter . | . . . . . . . . . . . . . . . . . Retrieved Components 2 | . . . . . . . . . . . 2 . . . . . Parts Scanalyzed 11 | . . . 5 . . . . . 2 . 4 . . . . . Part Schematics Acquired 11 | . . . 5 . . . . . 2 . 4 . . . . . Parts Damaged 1 | . . . . . . . . . 1 . . . . . . . Bothacking | -11 -10 -10 -9 -9 -9 -8 -8 -8 -8 -8 -7 -7 -7 -7 -7 -7 ------------ Run | Scr Mat Min Mat Min Exi Min Mat Gar Mat Gar Fac Gar Fac Low Low Dat Used RIF Installer 3 | . . . . . . . . 1 . 1 . 1 . . . . Patrol Navigation 1 | . . . . . . . . . . . . 1 . . . . Alert ID Control 1 | . . . . . . . . . . 1 . . . . . . Robots Hacked 2 | . . . . . . . . . . . . . 2 . . . Non-combat 1 | . . . . . . . . . . . . . 1 . . . Combat 1 | . . . . . . . . . . . . . 1 . . . Robot Hacks Applied 7 | . . . . . . . . . . . . . 7 . . . purge_threat 3 | . . . . . . . . . . . . . 3 . . . find_terminals 1 | . . . . . . . . . . . . . 1 . . . locate_traps 1 | . . . . . . . . . . . . . 1 . . . amplify_resonance 1 | . . . . . . . . . . . . . 1 . . . formatsys_high 1 | . . . . . . . . . . . . . 1 . . . Relay Couplers Released 35 | . . . . . . . . 10 . 10 . 11 4 . . . Machine Destruction 31 | . . . . . . . . 10 . 10 . 11 . . . . Programmers 4 | . . . . . . . . . . . . . 4 . . . Attached 4 | . . . . . . . . 1 . . . . 3 . . . Robots Rewired . | . . . . . . . . . . . . . . . . . Allies Hacked . | . . . . . . . . . . . . . . . . . Hacks Repelled . | . . . . . . . . . . . . . . . . . Allies | -11 -10 -10 -9 -9 -9 -8 -8 -8 -8 -8 -7 -7 -7 -7 -7 -7 -------- Run | Scr Mat Min Mat Min Exi Min Mat Gar Mat Gar Fac Gar Fac Low Low Dat Total Allies 10 | . . 3 . . . . 2 . . . . . 4 1 . . Largest Group 3 | . . 3 3 . . . 1 . . . . . 3 1 . . Highest-Rated Group 105 | . . 40 40 . . . 10 . . . . . 93 105 . . Highest-Rated Ally 105 | . . 16 16 . . . 10 . . . . . 32 105 . . Total Orders 10 | . . 2 2 . . . 4 . . . . . 2 . . . STAY 5 | . . 1 1 . . . 2 . . . . . 1 . . . FOLLOW 5 | . . 1 1 . . . 2 . . . . . 1 . . . Ally Attacks 47 | . . . 29 . . . . . . . . . 18 . . . Total Damage 663 | . . . 308 . . . . . . . . . 355 . . . Kills 12 | . . . 9 . . . . . . . . . 3 . . . Allies Corrupted . | . . . . . . . . . . . . . . . . . Allies Melted . | . . . . . . . . . . . . . . . . . Intel | -11 -10 -10 -9 -9 -9 -8 -8 -8 -8 -8 -7 -7 -7 -7 -7 -7 ------- Run | Scr Mat Min Mat Min Exi Min Mat Gar Mat Gar Fac Gar Fac Low Low Dat Robot Analysis Total 8 | . . . 4 . . . 1 . 3 . . . . . . . Derelict Logs Recovered 2 | . . 1 . 1 . . . . . . . . . . . . Drone Launches . | . . . . . . . . . . . . . . . . . Drone Recoveries . | . . . . . . . . . . . . . . . . . Exploration | -11 -10 -10 -9 -9 -9 -8 -8 -8 -8 -8 -7 -7 -7 -7 -7 -7 ------------- Run | Scr Mat Min Mat Min Exi Min Mat Gar Mat Gar Fac Gar Fac Low Low Dat Turns Passed 17711 | 92 649 1170 1043 373 342 44 1966 1146 442 839 2283 1870 3636 1151 522 143 Spaces Moved 8047 | 44 296 596 524 262 247 33 781 482 169 363 1061 752 1640 503 235 59 Core 7 | 5 . . . . . . . . . . . 2 . . . . Treads 6703 | 39 296 596 239 . . . 671 482 169 363 1061 350 1640 503 235 59 Legs 400 | . . . . . . . . . . . . 400 . . . . Wheels 937 | . . . 285 262 247 33 110 . . . . . . . . . Hover . | . . . . . . . . . . . . . . . . . Flight . | . . . . . . . . . . . . . . . . . Fastest Speed 50 | 50 160 180 125 125 115 135 120 160 175 175 175 180 180 160 220 220 Average Speed 185 | 147 177 180 163 125 130 135 190 184 191 192 200 202 181 204 220 220 Slowest Speed 2100 | 160 180 180 200 125 135 135 280 200 195 195 220 2100 183 220 220 220 Overloaded Moves . | . . . . . . . . . . . . . . . . . Propulsion Burnouts . | . . . . . . . . . . . . . . . . . Robots Hopped . | . . . . . . . . . . . . . . . . . Cave-ins Triggered . | . . . . . . . . . . . . . . . . . Exploration Rate (%) 51 | 4 53 100 56 59 54 14 72 70 24 59 24 61 42 60 47 68 Regions Visited 16 Branch Regions 7 Pre-discovered Areas 3 | . . 1 . . 1 . . . . . . . . . . 1 Known Exits Taken 3 | . . . . . . . 1 . 1 . 1 . . . . . Unknown Exits Taken 10 | 1 1 1 1 1 1 1 . . . . . . 1 1 1 . Scrap Searched 8 | . . 1 . 2 . . . . . . . . . 3 2 . Spaces Dug 33 | . . . 13 . . . 6 5 . . 6 . 3 . . . Terrain Destroyed 287 | . . 3 30 . . . 7 63 7 78 8 25 66 . . . Melee 13 | . . . 8 . . . 2 . . . . . 3 . . . Projectile 28 | . . . . . . . 5 1 7 1 8 3 3 . . . AOE 246 | . . 3 22 . . . . 62 . 77 . 22 60 . . . Terrain Rammed . | . . . . . . . . . . . . . . . . . Walls Destroyed . | . . . . . . . . . . . . . . . . . Machines Disabled . | . . . . . . . . . . . . . . . . . Actions | -11 -10 -10 -9 -9 -9 -8 -8 -8 -8 -8 -7 -7 -7 -7 -7 -7 --------- Run | Scr Mat Min Mat Min Exi Min Mat Gar Mat Gar Fac Gar Fac Low Low Dat Total 9800 | 59 363 656 623 282 268 32 1062 650 227 437 1173 978 2087 601 237 65 Wait 658 | 1 17 30 8 3 . . 113 53 14 20 57 81 235 25 . 1 Move 8027 | 43 295 595 523 261 246 32 780 480 168 361 1060 749 1639 502 234 59 Hop . | . . . . . . . . . . . . . . . . . Pick Up 224 | 3 12 3 24 2 14 . 28 25 5 7 10 17 36 38 . . Fast Attach 42 | 6 1 . 1 . 1 . 4 3 1 . 2 9 8 6 . . Attach 73 | 1 . 5 9 1 1 . 9 8 4 3 2 17 9 3 . 1 Detach 6 | . . . 1 . 1 . . 1 . . . . 2 1 . . Swap 57 | . 2 . 4 . . . 8 9 . . 2 6 22 2 2 . Drop 104 | . 4 . 1 2 5 . 22 8 4 2 11 12 23 10 . . Fire 538 | 5 32 22 43 13 . . 92 52 31 34 29 65 101 14 1 4 Melee 24 | . . . 8 . . . 5 1 . . . . 10 . . . Ram 1 | . . . . . . . 1 . . . . . . . . . Kick . | . . . . . . . . . . . . . . . . . Crush 1 | . . . 1 . . . . . . . . . . . . . Escape Stasis 44 | . . . . . . . . 10 . 10 . 22 2 . . . Rewire 1 | . . 1 . . . . . . . . . . . . . . Trap . | . . . . . . . . . . . . . . . . . Miscellaneous . | . . . . . . . . . . . . . . . . . Route ------- -11/Scrapyard -10/Materials (discovered 2 exits: [*Min x2]) -10/Mines (discovered 2 exits: *Mat x2) -9/Materials (discovered 4 exits: *Mat x2 / [*Min] / [*Sto]) -9/Mines (discovered 2 exits: *Mat / *Exi) -9/Exiles -8/Mines -8/Materials (discovered 3 exits: *Fac x2 / Gar) -8/Garrison (discovered 3 exits: *Mat x3) -8/Materials (discovered 2 exits: *Fac / Gar) -8/Garrison (discovered 2 exits: *Fac x2) -7/Factory (discovered 3 exits: *Fac / [*Low] / Gar) -7/Garrison (discovered 2 exits: *Fac x2) -7/Factory (discovered 6 exits: *Fac x4 / [*Low] / Gar) -7/Lower Caves (discovered 2 exits: *Low / *Fac) -7/Lower Caves -7/Data Miner (discovered 1 exit: [*Pro]) History --------- Turn | Location | Event 43 | -11/Scrapyard | Discovered new exit (range 15) 93 | -11/Scrapyard | Entered Materials 144 | -10/Materials | Discovered new exit (range 16) 311 | -10/Materials | Build established: Mutant 366 | -10/Materials | Discovered new exit (range 14) 443 | -10/Materials | Central database locked down 742 | -10/Materials | Entered Mines 742 | -10/Mines | Discovered new exit (range 7) 882 | -10/Mines | Received a Rocket Launcher from a helpful Derelict 910 | -10/Mines | Build established: Hauler-Mutant 1041 | -10/Mines | Learned Materials terminal intel 1096 | -10/Mines | Learned location of Storage (-9) 1431 | -10/Mines | Discovered new exit (range 15) 1467 | -10/Mines | Assisted by bots powering up and referring to "LRC-V3" 1609 | -10/Mines | Lost 3 parts (1p2w) 1912 | -10/Mines | Entered Materials 1912 | -9/Materials | Accompanied by 3 allies 1912 | -9/Materials | Evolved 2 slots: Utility x2 1913 | -9/Materials | Loaded intel: 12 terminal locations 2045 | -9/Materials | Discovered new exit (range 5) 2310 | -9/Materials | Lost 4 parts (1n1u2w) 2350 | -9/Materials | Discovered new exit (range 15) 2842 | -9/Materials | Discovered new exit (range 16) 2921 | -9/Materials | Discovered new exit (range 7) 2955 | -9/Materials | Entered Mines 3078 | -9/Mines | Discovered new exit (range 11) 3309 | -9/Mines | Learned Materials terminal intel 3321 | -9/Mines | Deemed a non-threat by the Exiles lab entrance 3323 | -9/Mines | Discovered new exit (range 5) 3328 | -9/Mines | Entered Exiles 3364 | -9/Exiles | Met 8R-AWN 3385 | -9/Exiles | Met EX-HEX 3529 | -9/Exiles | Met EX-DEC 3604 | -9/Exiles | Learned location of Zion (-6) 3659 | -9/Exiles | Discovered new exit (range 10) 3670 | -9/Exiles | Entered Mines 3704 | -8/Mines | Discovered new exit (range 8) 3714 | -8/Mines | Entered Materials 3714 | -8/Materials | Evolved 2 slots: Propulsion x1, Weapon x1 3715 | -8/Materials | Loaded intel: 12 terminal locations 3987 | -8/Materials | Lost 3 parts (1p1n1u) 3999 | -8/Materials | Destroyed 11 combat bots 4053 | -8/Materials | Discovered new exit (range 12) 4241 | -8/Materials | Lost 3 parts (1p1u1w) 4275 | -8/Materials | Central database locked down 4828 | -8/Materials | Discovered new exit (range 12) 5160 | -8/Materials | Build established: Hauler-Tank 5632 | -8/Materials | Garrison activated, responded to threat 5678 | -8/Materials | Identified exit to Garrison 5680 | -8/Materials | Entered Garrison 5752 | -8/Garrison | Triggered checkpoint 5966 | -8/Garrison | Discovered new exit (range 10) 5996 | -8/Garrison | Installed Relay Interface Framework 6048 | -8/Garrison | Triggered checkpoint 6117 | -8/Garrison | Garrison Relay disabled 6222 | -8/Garrison | Triggered checkpoint 6292 | -8/Garrison | Triggered checkpoint 6311 | -8/Garrison | Discovered new exit (range 10) 6366 | -8/Garrison | Triggered checkpoint 6399 | -8/Garrison | Garrison Relay disabled 6417 | -8/Garrison | Build established: Hauler-Mutant 6539 | -8/Garrison | Triggered checkpoint 6540 | -8/Garrison | Core integrity fell below 50% 6576 | -8/Garrison | Spotted B-75 Beast 6578 | -8/Garrison | Spotted B-75 Beast 6634 | -8/Garrison | Triggered checkpoint 6816 | -8/Garrison | Discovered new exit (range 3) 6826 | -8/Garrison | Entered Materials 7057 | -8/Materials | Garrison activated, responded to threat 7083 | -8/Materials | Discovered new exit (range 8) 7157 | -8/Materials | Build established: Hauler-Tank 7258 | -8/Materials | Identified exit to Garrison 7268 | -8/Materials | Entered Garrison 7292 | -8/Garrison | Triggered checkpoint 7335 | -8/Garrison | Garrison Relay disabled 7445 | -8/Garrison | Triggered checkpoint 7590 | -8/Garrison | Phase Generator disabled 7604 | -8/Garrison | Core integrity fell below 20% 7731 | -8/Garrison | Garrison Relay disabled 7770 | -8/Garrison | Discovered new exit (range 15) 7811 | -8/Garrison | Expanded RIF knowledge: Alert ID Control 8006 | -8/Garrison | Triggered checkpoint 8025 | -8/Garrison | Garrison Relay disabled 8080 | -8/Garrison | Discovered new exit (range 14) 8107 | -8/Garrison | Entered Factory 8107 | -7/Factory | Evolved 2 slots: Propulsion x1, Utility x1 8537 | -7/Factory | Build established: Hauler-Gunner 8921 | -7/Factory | Discovered new exit (range 9) 9803 | -7/Factory | Discovered new exit (range 14) 10388 | -7/Factory | Identified exit to Garrison 10390 | -7/Factory | Entered Garrison 10462 | -7/Garrison | Triggered checkpoint 10766 | -7/Garrison | Garrison Relay disabled 10919 | -7/Garrison | Triggered checkpoint 10962 | -7/Garrison | Lost 7 parts (1p3n1u2w) 10968 | -7/Garrison | Destroyed 13 combat bots 11048 | -7/Garrison | Triggered checkpoint 11063 | -7/Garrison | Lost 6 parts (1p1n4w) 11376 | -7/Garrison | Triggered checkpoint 11424 | -7/Garrison | Garrison Relay disabled 11492 | -7/Garrison | Discovered new exit (range 12) 11642 | -7/Garrison | Triggered checkpoint 11726 | -7/Garrison | Triggered checkpoint 11755 | -7/Garrison | Build established: Scavenger-Gunner 11818 | -7/Garrison | Garrison Relay disabled 11905 | -7/Garrison | Discovered new exit (range 15) 11950 | -7/Garrison | Lost 5 parts (4n1u) 11965 | -7/Garrison | Expanded RIF knowledge: Watcher Feeds 12260 | -7/Garrison | Entered Factory 12338 | -7/Factory | Garrison activated, responded to threat 12497 | -7/Factory | Allied Derelicts emerged from ambush trap array 13056 | -7/Factory | Repaired Autogun 13152 | -7/Factory | Discovered new exit (range 10) 13408 | -7/Factory | Identified exit to Garrison 13476 | -7/Factory | Build established: Bothacker-Gunner 13490 | -7/Factory | Discovered new exit (range 15) 13572 | -7/Factory | Fabricated Gauss Rifle? 13595 | -7/Factory | Core integrity fell below 50% 13608 | -7/Factory | Garrison activated, responded to threat 13609 | -7/Factory | Lost 3 parts (1p1n1u) 13870 | -7/Factory | Build established: Bothacker-Tank 14275 | -7/Factory | Build established: Bothacker-Mutant 14687 | -7/Factory | Build established: Bothacker-Tank 14809 | -7/Factory | Discovered new exit (range 11) 15156 | -7/Factory | Identified exit to Factory 15473 | -7/Factory | Fabricated Deuterium Engine? 15500 | -7/Factory | First assault squad dispatched 15896 | -7/Factory | Entered Lower Caves 16009 | -7/Lower Caves | 12-ASH showed up to help 16011 | -7/Lower Caves | 12-ASH revealed a hidden path 16076 | -7/Lower Caves | Spotted B-75 Beast 16354 | -7/Lower Caves | Destroyed B-75 Beast 16384 | -7/Lower Caves | Lost 3 parts (1p2n) 16772 | -7/Lower Caves | Core integrity fell below 20% 17004 | -7/Lower Caves | Discovered new exit (range 12) 17047 | -7/Lower Caves | Entered another Lower Caves area 17516 | -7/Lower Caves | Discovered new exit (range 10) 17569 | -7/Lower Caves | Entered Data Miner 17569 | -7/Data Miner | Discovered new exit (range 7) 17611 | -7/Data Miner | Met Data Miner 17649 | -7/Data Miner | Learned location of Section 7 (-3) 17649 | -7/Data Miner | Acquired the access code to Warlord's prototype stash 17682 | -7/Data Miner | Received God Mode back door access code from Data Miner 17699 | -7/Data Miner | Data Conduit disabled 17712 | -7/Data Miner | Destroyed by Enhanced Grunt with Neutron Cannon Last Messages --------------- 17678_ System corrupted: Matter fused (-10). Data Miner: I've just received further instructions. God Mode is nearly complete and we think you might be able to put it to better use than Warlord, so if you see an opportunity, hack it and enter \\4WHJ to gain control via the back door I've installed. Now off with you. 17699_ System corrupted: FCS attempts to trigger Gauss Rifle. 17699_ System corrupted: Gauss Rifle misfires. 17699_ Slug penetrates Data Conduit. 17699_ Data Conduit disabled. 17699_ Data Miner disappears through a trap door. 17700_ Slug penetrates Enhanced Grunt. 17700_ System corrupted: Shock Bomb Launcher targeting data glitched. 17704_ System corrupted: Gauss Rifle targeting data glitched. 17704_ Slug penetrates Enhanced Grunt. 17704_ Lgt. Treads destroyed. 17704_ Gauss Rifle destroyed. 17705_ Shock Bomb Launcher destroyed. 17706_ Gauss Rifle destroyed. 17706_ Med. Reactive Plating destroyed. Map ----- +----------------------------------------------------+ | | | | | | | | | | | | | | | | | | | | | | | | | | | ?????????????????????????????????????????????? | | ?????????????????????????????????????????????? | | ?????????????????????????????????????????????? | | ?????????????????????????????????????????????? | | ?????????????????????????????????????####????? | | ???????????##########?????##???????### #????? | | ???????????"""""""""###### #?#????## #????? | | ????????""""" """ g# # # ## < ##????? | | ????????""""" g ###### | | ???????""" gg # | | ???????" # | | ???????"" # | | ???????""" @ ## | | ???????""" """"""""""""""""#####? | | ????????""" """###############????? | | ????????""" " """###??????????????????? | | ????????""""" "#####????????????????????? | | ?????????###"## "#????????????????????????? | | ??????????????## "#????????????????????????? | | ??????????????## "#????????????????????????? | | ??????????????# "#????????????????????????? | | ?????????????## "#????????????????????????? | | ?????????????# "#????????????????????????? | | ?????????????### "#????????????????????????? | | ???????????????# "##???????????????????????? | | ??????????????## ""#???????????????????????? | | ?????????????## ""#???????????????????????? | | ??????????##"#"X ""#???????????????????????? | | ??????????""""" "####????????????????????? | | ??????????""""" X"""""????????????????????? | | ??????????##"#"X "##"#????????????????????? | | ???????????#"## X""""#????????????????????? | | ??????????????## "##"#????????????????????? | | ???????????????#######???????????????????????? | | ?????????????????????????????????????????????? | | ?????????????????????????????????????????????? | | ?????????????????????????????????????????????? | +----------------------------------------------------+ Best States ------------- Heat Dissipation 34 Energy Generation 16 Energy Capacity 290 Matter Stores 463 Matter Capacity 500 Sight Range 16 Terrain Scan Density 10 Armor Coverage 375 Resistance: KI 30 Evasion (%) 40 Targeting Accuracy 6 Recoil Reduction 4 Offensive Hacking 10 Relay Coupler Types 27 Relay Coupler Value 1 Item Schematics ----------------- Hcp. Storage Unit | -9/Materials | Scanalyzed Rocket Launcher | -9/Materials | Scanalyzed Imp. Ion Engine | -9/Materials | Scanalyzed Med. Storage Unit | -9/Materials | Scanalyzed Lrg. Matter Pod | -9/Materials | Scanalyzed Gauss Rifle | -8/Materials | Scanalyzed Shock Bomb Launcher | -8/Materials | Scanalyzed Hrd. Medium Armor Plating | -7/Factory | Scanalyzed Deuterium Engine | -7/Factory | Scanalyzed Flak Gun | -7/Factory | Scanalyzed Imp. Power Shielding | -7/Factory | Scanalyzed Enh. Gauss Cannon | -7/Factory | Hacked Combat Drone Bay | -7/Data Miner | Free Lgt. Regenerative Plating | -7/Data Miner | Free Exp. Flexi-carbon Leg | -7/Data Miner | Free Exp. Sensor Array | -7/Data Miner | Free Exp. Targeting Computer | -7/Data Miner | Free Tactical Coordination Suite | -7/Data Miner | Free Exp. ECM Suite | -7/Data Miner | Free Kinetic Spear | -7/Data Miner | Free Robot Schematics ------------------ S-27 Virus | -7/Data Miner | Free G-50 Soldier | -7/Data Miner | Free G-67 Veteran | -7/Data Miner | Free L-41 Fighter | -7/Data Miner | Free X-72 Disruptor | -7/Data Miner | Free H-66 Slayer | -7/Data Miner | Free I-36 Angel | -7/Data Miner | Free I-47 Archangel | -7/Data Miner | Free Fabricated ------------ Gauss Rifle | x2 | -7/Factory Deuterium Engine | x2 | -7/Factory Alien Tech Used ----------------- None Achievements -------------- None Challenges ------------ None Game ------ Seed AbsorptionBlastTerminator Manual? 0 Play Time 01:27:58 Cumulative 77.6 hours Start 2021.05.16 @ 03:49:30 End 2021.05.16 @ 21:28:41 Sessions 3 Manual Loads 0 Difficulty Rogue Special Mode None Game No. 132 Rogue 120 Adventurer 4 Explorer 8 Win Type - Total 6 Types 5/0/0/1/0/0/0/0/0 Lore% 56 Gallery% 72 Achievement% 53 Wizard Run 0 Options --------- ASCII 0 Keyboard 1 Movement Numpad Keybinds 0 Fullscreen 1 Font 16/Terminus Map View 76x50 Tactical HUD 1 Map Filters NONE Filters NONE Steam X RUN: 6188d46f-dac9-43cc-acd2-19cd09edc960